[Event "January 9 Early 2024"]
[Site "https://www.chess.com"]
[Date "2024.01.11"]
[Round "1"]
[White "Wendt, Jan-Dietrich"]
[Black "Piesik, Piotr"]
[Result "0-1"]
[Board "261"]
[TimeControl "180+1"]
[WhiteFideId "4623797"]
[BlackFideId "1136194"]
[WhiteElo "2357"]
[BlackElo "2682"]
[WhiteTeam "GER"]
[BlackTeam "CZE"]
[WhiteClock "0:00:10"]
[BlackClock "0:00:12"]

1. Nf3 {[%clk 0:03:00]}  d5 {[%clk 0:02:58]} 2. c4 {[%clk 0:03:00]}  c6 {[%clk 0:02:56]} 3. e3 {[%clk 0:02:59]}  Nf6 {[%clk 0:02:55]} 4. Nc3 {[%clk 0:02:59]}  a6 {[%clk 0:02:55]} 5. b3 {[%clk 0:02:59]}  Bf5 {[%clk 0:02:54]} 6. Bb2 {[%clk 0:02:58]}  e6 {[%clk 0:02:54]} 7. Be2 {[%clk 0:02:58]}  Nbd7 {[%clk 0:02:53]} 8. O-O {[%clk 0:02:58]}  Bd6 {[%clk 0:02:53]} 9. Nh4 {[%clk 0:02:53]}  Bg6 {[%clk 0:02:53]} 10. h3 {[%clk 0:02:51]}  b5 {[%clk 0:02:43]} 11. Rc1 {[%clk 0:02:39]}  Rc8 {[%clk 0:02:41]} 12. d3 {[%clk 0:02:35]}  Qa5 {[%clk 0:02:33]} 13. a3 {[%clk 0:02:24]}  Bb8 {[%clk 0:02:22]} 14. f4 {[%clk 0:02:13]}  Qb6 {[%clk 0:02:17]} 15. Qd2 {[%clk 0:01:53]}  Ba7 {[%clk 0:01:59]} 16. Rf3 {[%clk 0:01:44]}  Nc5 {[%clk 0:01:37]} 17. Nxg6 {[%clk 0:01:29]}  hxg6 {[%clk 0:01:37]} 18. Bd1 {[%clk 0:01:26]}  bxc4 {[%clk 0:01:29]} 19. bxc4 {[%clk 0:01:18]}  Nb3 {[%clk 0:01:29]} 20. Bxb3 {[%clk 0:01:17]}  Qxb3 {[%clk 0:01:30]} 21. Ne2 {[%clk 0:00:56]}  O-O {[%clk 0:01:25]} 22. c5 {[%clk 0:00:43]}  Rb8 {[%clk 0:01:18]} 23. Bxf6 {[%clk 0:00:35]}  gxf6 {[%clk 0:01:18]} 24. d4 {[%clk 0:00:36]}  Qxa3 {[%clk 0:01:13]} 25. e4 {[%clk 0:00:21]}  Qb2 {[%clk 0:01:02]} 26. Rc2 {[%clk 0:00:21]}  Qb1+ {[%clk 0:01:01]} 27. Rf1 {[%clk 0:00:20]}  Qb4 {[%clk 0:01:01]} 28. e5 {[%clk 0:00:18]}  Qxd2 {[%clk 0:00:59]} 29. Rxd2 {[%clk 0:00:19]}  fxe5 {[%clk 0:00:55]} 30. fxe5 {[%clk 0:00:20]}  Rb4 {[%clk 0:00:31]} 31. h4 {[%clk 0:00:16]}  a5 {[%clk 0:00:25]} 32. Ra1 {[%clk 0:00:14]}  a4 {[%clk 0:00:20]} 33. Rda2 {[%clk 0:00:14]}  Rfb8 {[%clk 0:00:19]} 34. Rxa4 {[%clk 0:00:13]}  Rxa4 {[%clk 0:00:19]} 35. Rxa4 {[%clk 0:00:12]}  Rb7 {[%clk 0:00:20]} 36. Kf2 {[%clk 0:00:10]}  Kf8 {[%clk 0:00:20]} 37. g4 {[%clk 0:00:09]}  Ke7 {[%clk 0:00:20]} 38. h5 {[%clk 0:00:09]}  gxh5 {[%clk 0:00:21]} 39. gxh5 {[%clk 0:00:10]}  f6 {[%clk 0:00:14]} 40. exf6+ {[%clk 0:00:09]}  Kxf6 {[%clk 0:00:14]} 41. Ra3 {[%clk 0:00:09]}  e5 {[%clk 0:00:14]} 42. Rf3+ {[%clk 0:00:09]}  Ke6 {[%clk 0:00:14]} 43. dxe5 {[%clk 0:00:08]}  Bxc5+ {[%clk 0:00:14]} 44. Kg3 {[%clk 0:00:09]}  Rg7+ {[%clk 0:00:14]} 45. Kh4 {[%clk 0:00:09]}  Kxe5 {[%clk 0:00:14]} 46. Nf4 {[%clk 0:00:08]}  Be7+ {[%clk 0:00:13]} 47. Kh3 {[%clk 0:00:08]}  Bg5 {[%clk 0:00:13]} 48. Ng6+ {[%clk 0:00:08]}  Ke4 {[%clk 0:00:13]} 49. Rf8 {[%clk 0:00:08]}  Be3 {[%clk 0:00:12]} 50. Kg4 {[%clk 0:00:08]}  d4 {[%clk 0:00:12]} 51. Rf6 {[%clk 0:00:08]}  c5 {[%clk 0:00:12]} 52. h6 {[%clk 0:00:08]}  Bxh6 {[%clk 0:00:12]} 53. Rc6 {[%clk 0:00:08]}  Kd5 {[%clk 0:00:11]} 54. Kh5 {[%clk 0:00:09]}  Kxc6 {[%clk 0:00:10]} 55. Kxh6 {[%clk 0:00:10]}  Rxg6+ {[%clk 0:00:11]} 56. Kxg6 {[%clk 0:00:10]}  d3 {[%clk 0:00:12]} 0-1

[Event "January 9 Early 2024"]
[Site "https://www.chess.com"]
[Date "2024.01.11"]
[Round "1"]
[White "Klukin, Kirill"]
[Black "Lopusiewicz, Piotr"]
[Result "0-1"]
[Board "262"]
[TimeControl "180+1"]
[WhiteFideId "24199273"]
[BlackFideId "1116029"]
[WhiteElo "2828"]
[BlackElo "2475"]
[WhiteTeam "RUS"]
[BlackTeam "POL"]
[WhiteClock "0:00:09"]
[BlackClock "0:00:11"]

1. e4 {[%clk 0:03:00]}  e5 {[%clk 0:03:00]} 2. Nf3 {[%clk 0:02:59]}  Nc6 {[%clk 0:03:00]} 3. d4 {[%clk 0:02:59]}  exd4 {[%clk 0:03:00]} 4. Nxd4 {[%clk 0:03:00]}  Nf6 {[%clk 0:03:00]} 5. Nxc6 {[%clk 0:02:54]}  bxc6 {[%clk 0:03:00]} 6. e5 {[%clk 0:02:55]}  Qe7 {[%clk 0:03:00]} 7. Qe2 {[%clk 0:02:55]}  Nd5 {[%clk 0:03:01]} 8. c4 {[%clk 0:02:55]}  Nb6 {[%clk 0:03:01]} 9. b3 {[%clk 0:02:52]}  Qe6 {[%clk 0:02:58]} 10. g3 {[%clk 0:02:36]}  a5 {[%clk 0:02:56]} 11. a4 {[%clk 0:02:01]}  Bb7 {[%clk 0:02:35]} 12. Bg2 {[%clk 0:02:00]}  d5 {[%clk 0:02:35]} 13. exd6 {[%clk 0:01:53]}  Qxe2+ {[%clk 0:02:33]} 14. Kxe2 {[%clk 0:01:54]}  cxd6 {[%clk 0:02:30]} 15. Be3 {[%clk 0:01:52]}  Nd7 {[%clk 0:02:22]} 16. Nc3 {[%clk 0:01:50]}  O-O-O {[%clk 0:02:17]} 17. Rad1 {[%clk 0:01:42]}  Be7 {[%clk 0:02:14]} 18. Rhe1 {[%clk 0:01:23]}  Rhe8 {[%clk 0:02:12]} 19. Ne4 {[%clk 0:01:08]}  d5 {[%clk 0:01:57]} 20. cxd5 {[%clk 0:01:08]}  cxd5 {[%clk 0:01:57]} 21. Nc3 {[%clk 0:00:47]}  Ba6+ {[%clk 0:01:41]} 22. Nb5 {[%clk 0:00:47]}  Bb4 {[%clk 0:01:34]} 23. Rc1+ {[%clk 0:00:42]}  Kb8 {[%clk 0:01:33]} 24. Red1 {[%clk 0:00:41]}  Nc5 {[%clk 0:01:18]} 25. Kf1 {[%clk 0:00:36]}  Nxb3 {[%clk 0:01:03]} 26. Bf4+ {[%clk 0:00:33]}  Bd6 {[%clk 0:01:03]} 27. Bxd6+ {[%clk 0:00:21]}  Rxd6 {[%clk 0:01:03]} 28. Rb1 {[%clk 0:00:22]}  Nc5 {[%clk 0:00:44]} 29. Kg1 {[%clk 0:00:17]}  Rb6 {[%clk 0:00:43]} 30. Bxd5 {[%clk 0:00:13]}  Nxa4 {[%clk 0:00:41]} 31. Nd6 {[%clk 0:00:07]}  Rd8 {[%clk 0:00:31]} 32. Nxf7 {[%clk 0:00:07]}  Rxd5 {[%clk 0:00:28]} 33. Rxb6+ {[%clk 0:00:07]}  Nxb6 {[%clk 0:00:28]} 34. Rb1 {[%clk 0:00:08]}  Ka7 {[%clk 0:00:25]} 35. h4 {[%clk 0:00:08]}  a4 {[%clk 0:00:25]} 36. Ng5 {[%clk 0:00:09]}  Bb7 {[%clk 0:00:24]} 37. Ne4 {[%clk 0:00:09]}  Re5 {[%clk 0:00:22]} 38. Nc3 {[%clk 0:00:09]}  Bc6 {[%clk 0:00:18]} 39. g4 {[%clk 0:00:08]}  Rc5 {[%clk 0:00:18]} 40. Na2 {[%clk 0:00:09]}  a3 {[%clk 0:00:17]} 41. Nb4 {[%clk 0:00:09]}  Bb7 {[%clk 0:00:17]} 42. Ra1 {[%clk 0:00:09]}  Ra5 {[%clk 0:00:17]} 43. Nc2 {[%clk 0:00:10]}  a2 {[%clk 0:00:16]} 44. Nb4 {[%clk 0:00:10]}  Bd5 {[%clk 0:00:17]} 45. Kf1 {[%clk 0:00:07]}  Bc4+ {[%clk 0:00:17]} 46. Ke1 {[%clk 0:00:07]}  Nd5 {[%clk 0:00:17]} 47. Nc2 {[%clk 0:00:07]}  Kb6 {[%clk 0:00:14]} 48. Kd2 {[%clk 0:00:07]}  Kc5 {[%clk 0:00:15]} 49. Kc1 {[%clk 0:00:07]}  Nb4 {[%clk 0:00:14]} 50. Ne3 {[%clk 0:00:07]}  Be6 {[%clk 0:00:11]} 51. Kb2 {[%clk 0:00:07]}  Nd3+ {[%clk 0:00:11]} 52. Kc3 {[%clk 0:00:08]}  Nxf2 {[%clk 0:00:11]} 53. g5 {[%clk 0:00:09]}  Ne4+ {[%clk 0:00:11]} 54. Kd3 {[%clk 0:00:09]}  Nd6 {[%clk 0:00:11]} 55. Rc1+ {[%clk 0:00:09]}  Nc4 {[%clk 0:00:11]} 56. Rc2 {[%clk 0:00:09]}  a1=Q {[%clk 0:00:10]} 57. Nxc4 {[%clk 0:00:09]}  Qd4+ {[%clk 0:00:11]} 0-1

[Event "January 9 Early 2024"]
[Site "https://www.chess.com"]
[Date "2024.01.11"]
[Round "1"]
[White "Tristan, Leonardo"]
[Black "Szyszylo, Rafal"]
[Result "1-0"]
[Board "263"]
[TimeControl "180+1"]
[WhiteFideId "113816"]
[BlackFideId "1109626"]
[WhiteElo "2733"]
[BlackElo "2404"]
[WhiteTeam "ARG"]
[BlackTeam "POL"]
[WhiteClock "0:00:05"]
[BlackClock "0:00:03"]

1. d4 {[%clk 0:03:00]}  d6 {[%clk 0:03:00]} 2. e4 {[%clk 0:03:00]}  Nf6 {[%clk 0:03:00]} 3. Nc3 {[%clk 0:02:58]}  g6 {[%clk 0:03:00]} 4. Nf3 {[%clk 0:02:58]}  Bg7 {[%clk 0:03:00]} 5. Be2 {[%clk 0:02:58]}  O-O {[%clk 0:03:00]} 6. O-O {[%clk 0:02:59]}  Bg4 {[%clk 0:03:00]} 7. h3 {[%clk 0:02:57]}  Bxf3 {[%clk 0:03:01]} 8. Bxf3 {[%clk 0:02:58]}  e5 {[%clk 0:03:01]} 9. dxe5 {[%clk 0:02:57]}  dxe5 {[%clk 0:03:02]} 10. Be3 {[%clk 0:02:38]}  c6 {[%clk 0:02:59]} 11. a4 {[%clk 0:02:36]}  Qe7 {[%clk 0:02:54]} 12. a5 {[%clk 0:02:35]}  Na6 {[%clk 0:02:52]} 13. Qe2 {[%clk 0:02:32]}  Rfd8 {[%clk 0:02:36]} 14. Qc4 {[%clk 0:02:28]}  Bf8 {[%clk 0:02:25]} 15. Be2 {[%clk 0:02:20]}  Nc5 {[%clk 0:02:09]} 16. Rfd1 {[%clk 0:01:58]}  a6 {[%clk 0:02:08]} 17. Bf1 {[%clk 0:01:43]}  h6 {[%clk 0:01:06]} 18. g3 {[%clk 0:01:15]}  Kg7 {[%clk 0:01:05]} 19. Bg2 {[%clk 0:01:15]}  Rd7 {[%clk 0:01:04]} 20. Rxd7 {[%clk 0:01:13]}  Nfxd7 {[%clk 0:01:03]} 21. Ne2 {[%clk 0:01:08]}  Ne6 {[%clk 0:00:50]} 22. c3 {[%clk 0:01:04]}  Rd8 {[%clk 0:00:45]} 23. b4 {[%clk 0:01:00]}  Nf6 {[%clk 0:00:39]} 24. Re1 {[%clk 0:00:56]}  Nc7 {[%clk 0:00:38]} 25. Bb6 {[%clk 0:00:52]}  Rd7 {[%clk 0:00:37]} 26. Nc1 {[%clk 0:00:50]}  Nb5 {[%clk 0:00:37]} 27. Nb3 {[%clk 0:00:46]}  Qe8 {[%clk 0:00:33]} 28. Nc5 {[%clk 0:00:41]}  Bxc5 {[%clk 0:00:30]} 29. Bxc5 {[%clk 0:00:42]}  Qd8 {[%clk 0:00:28]} 30. Bb6 {[%clk 0:00:32]}  Qe7 {[%clk 0:00:26]} 31. f4 {[%clk 0:00:31]}  Nh5 {[%clk 0:00:25]} 32. f5 {[%clk 0:00:16]}  Nxg3 {[%clk 0:00:21]} 33. Bc5 {[%clk 0:00:10]}  Qg5 {[%clk 0:00:20]} 34. Be3 {[%clk 0:00:10]}  Qh4 {[%clk 0:00:20]} 35. Bf2 {[%clk 0:00:10]}  Qg5 {[%clk 0:00:19]} 36. Be3 {[%clk 0:00:08]}  Qh4 {[%clk 0:00:15]} 37. Bf2 {[%clk 0:00:09]}  Qg5 {[%clk 0:00:15]} 38. Qc5 {[%clk 0:00:10]}  Rd2 {[%clk 0:00:10]} 39. Qxe5+ {[%clk 0:00:09]}  Kh7 {[%clk 0:00:09]} 40. Qxg3 {[%clk 0:00:10]}  Qxg3 {[%clk 0:00:04]} 41. Bxg3 {[%clk 0:00:10]}  Nxc3 {[%clk 0:00:05]} 42. fxg6+ {[%clk 0:00:09]}  Kxg6 {[%clk 0:00:05]} 43. Kh2 {[%clk 0:00:08]}  Rb2 {[%clk 0:00:03]} 44. Re3 {[%clk 0:00:06]}  Nb5 {[%clk 0:00:02]} 45. Be1 {[%clk 0:00:06]}  Rb1 {[%clk 0:00:02]} 46. Kg3 {[%clk 0:00:04]}  Rb2 {[%clk 0:00:03]} 47. Bf3 {[%clk 0:00:05]}  f6 {[%clk 0:00:03]} 48. h4 {[%clk 0:00:05]}  h5 {[%clk 0:00:04]} 49. e5 {[%clk 0:00:05]}  f5 {[%clk 0:00:03]} 50. e6 {[%clk 0:00:05]} 1-0

[Event "January 9 Early 2024"]
[Site "https://www.chess.com"]
[Date "2024.01.11"]
[Round "1"]
[White "Vincenti, Leonardo"]
[Black "Leyva Proenza, Richard"]
[Result "0-1"]
[Board "264"]
[TimeControl "180+1"]
[WhiteFideId "28550820"]
[BlackFideId "3500985"]
[WhiteElo "2188"]
[BlackElo "2580"]
[WhiteTeam "ITA"]
[BlackTeam "VEN"]
[WhiteClock "0:00:01"]
[BlackClock "0:00:09"]

1. e4 {[%clk 0:03:00]}  e5 {[%clk 0:02:58]} 2. Nf3 {[%clk 0:02:59]}  Nc6 {[%clk 0:02:58]} 3. d4 {[%clk 0:02:58]}  exd4 {[%clk 0:02:58]} 4. Nxd4 {[%clk 0:02:58]}  Bc5 {[%clk 0:02:58]} 5. Be3 {[%clk 0:02:55]}  Qf6 {[%clk 0:02:58]} 6. c3 {[%clk 0:02:50]}  Qg6 {[%clk 0:02:58]} 7. Nb5 {[%clk 0:02:37]}  Bxe3 {[%clk 0:02:57]} 8. Nxc7+ {[%clk 0:02:37]}  Kd8 {[%clk 0:02:57]} 9. Nxa8 {[%clk 0:02:37]}  Bf4 {[%clk 0:02:57]} 10. Qf3 {[%clk 0:02:33]}  Bb8 {[%clk 0:02:56]} 11. Nd2 {[%clk 0:02:20]}  Nf6 {[%clk 0:02:45]} 12. O-O-O {[%clk 0:02:12]}  Re8 {[%clk 0:02:45]} 13. Bd3 {[%clk 0:01:59]}  Qg4 {[%clk 0:02:36]} 14. Nc4 {[%clk 0:01:35]}  Qxf3 {[%clk 0:02:04]} 15. gxf3 {[%clk 0:01:36]}  Ne5 {[%clk 0:02:04]} 16. Nxe5 {[%clk 0:01:22]}  Bxe5 {[%clk 0:02:04]} 17. Bc4 {[%clk 0:01:15]}  Re7 {[%clk 0:01:57]} 18. a4 {[%clk 0:00:58]}  b6 {[%clk 0:01:57]} 19. a5 {[%clk 0:00:56]}  bxa5 {[%clk 0:01:55]} 20. Bd5 {[%clk 0:00:39]}  d6 {[%clk 0:01:33]} 21. Kc2 {[%clk 0:00:19]}  Nxd5 {[%clk 0:00:29]} 22. Rxd5 {[%clk 0:00:20]}  Bb7 {[%clk 0:00:29]} 23. Rxa5 {[%clk 0:00:20]}  Bxa8 {[%clk 0:00:29]} 24. Rha1 {[%clk 0:00:20]}  Bxh2 {[%clk 0:00:29]} 25. Rxa7 {[%clk 0:00:20]}  Bb7 {[%clk 0:00:30]} 26. Rh1 {[%clk 0:00:18]}  Be5 {[%clk 0:00:29]} 27. Ra3 {[%clk 0:00:11]}  h6 {[%clk 0:00:26]} 28. Rg1 {[%clk 0:00:11]}  h5 {[%clk 0:00:22]} 29. Rh1 {[%clk 0:00:10]}  g6 {[%clk 0:00:22]} 30. Rb3 {[%clk 0:00:09]}  Kc7 {[%clk 0:00:21]} 31. Ra3 {[%clk 0:00:09]}  f5 {[%clk 0:00:18]} 32. Ra4 {[%clk 0:00:08]}  fxe4 {[%clk 0:00:17]} 33. fxe4 {[%clk 0:00:09]}  Rf7 {[%clk 0:00:18]} 34. Rf1 {[%clk 0:00:08]}  h4 {[%clk 0:00:18]} 35. f3 {[%clk 0:00:07]}  h3 {[%clk 0:00:16]} 36. Rc4+ {[%clk 0:00:08]}  Kd7 {[%clk 0:00:16]} 37. b4 {[%clk 0:00:08]}  h2 {[%clk 0:00:16]} 38. Rh1 {[%clk 0:00:08]}  Rxf3 {[%clk 0:00:13]} 39. b5 {[%clk 0:00:08]}  Rf2+ {[%clk 0:00:12]} 40. Kd1 {[%clk 0:00:07]}  Rg2 {[%clk 0:00:12]} 41. Ke1 {[%clk 0:00:04]}  Rg1+ {[%clk 0:00:11]} 42. Kf2 {[%clk 0:00:04]}  Rxh1 {[%clk 0:00:12]} 43. Ra4 {[%clk 0:00:03]}  Rb1 {[%clk 0:00:11]} 44. Ra7 {[%clk 0:00:03]}  Rxb5 {[%clk 0:00:11]} 45. Kg2 {[%clk 0:00:03]}  Rb1 {[%clk 0:00:11]} 46. Rxb7+ {[%clk 0:00:03]}  Rxb7 {[%clk 0:00:10]} 47. c4 {[%clk 0:00:04]}  Rb2+ {[%clk 0:00:10]} 48. Kf3 {[%clk 0:00:01]}  h1=Q+ {[%clk 0:00:09]} 49. Ke3 {[%clk 0:00:02]}  Qe1+ {[%clk 0:00:09]} 50. Kf3 {[%clk 0:00:01]}  Rf2+ {[%clk 0:00:07]} 51. Kg4 {[%clk 0:00:01]}  Qg1+ {[%clk 0:00:08]} 52. Kh3 {[%clk 0:00:01]}  Rh2# {[%clk 0:00:09]} 0-1

[Event "January 9 Early 2024"]
[Site "https://www.chess.com"]
[Date "2024.01.11"]
[Round "1"]
[White "Levitan, Tal"]
[Black "Drygalov, Sergey"]
[Result "1/2-1/2"]
[Board "266"]
[TimeControl "180+1"]
[WhiteFideId "2804603"]
[BlackFideId "24171743"]
[WhiteElo "2515"]
[BlackElo "2936"]
[WhiteTeam "ISR"]
[BlackTeam "RUS"]
[WhiteClock "0:00:09"]
[BlackClock "0:00:01"]

1. e4 {[%clk 0:03:00]}  c5 {[%clk 0:03:00]} 2. c3 {[%clk 0:03:00]}  d6 {[%clk 0:03:00]} 3. d4 {[%clk 0:03:00]}  Nf6 {[%clk 0:02:59]} 4. Bd3 {[%clk 0:03:00]}  Nc6 {[%clk 0:02:57]} 5. Nf3 {[%clk 0:03:00]}  Bg4 {[%clk 0:02:54]} 6. d5 {[%clk 0:03:00]}  Ne5 {[%clk 0:02:54]} 7. Nxe5 {[%clk 0:02:58]}  dxe5 {[%clk 0:02:51]} 8. Be2 {[%clk 0:02:59]}  Bxe2 {[%clk 0:02:46]} 9. Qxe2 {[%clk 0:02:59]}  g6 {[%clk 0:02:45]} 10. O-O {[%clk 0:02:59]}  Bg7 {[%clk 0:02:45]} 11. c4 {[%clk 0:02:54]}  O-O {[%clk 0:02:45]} 12. Nc3 {[%clk 0:02:54]}  Ne8 {[%clk 0:02:45]} 13. f4 {[%clk 0:02:53]}  Nd6 {[%clk 0:02:38]} 14. f5 {[%clk 0:02:44]}  a6 {[%clk 0:02:26]} 15. Be3 {[%clk 0:02:38]}  Qc7 {[%clk 0:02:21]} 16. Bg5 {[%clk 0:02:30]}  b5 {[%clk 0:02:17]} 17. cxb5 {[%clk 0:02:23]}  axb5 {[%clk 0:02:04]} 18. Nxb5 {[%clk 0:02:18]}  Nxb5 {[%clk 0:02:05]} 19. Qxb5 {[%clk 0:02:19]}  c4 {[%clk 0:02:05]} 20. Rfc1 {[%clk 0:02:03]}  Rfc8 {[%clk 0:02:05]} 21. Qb4 {[%clk 0:01:39]}  gxf5 {[%clk 0:02:00]} 22. exf5 {[%clk 0:01:39]}  e4 {[%clk 0:02:01]} 23. Qxe7 {[%clk 0:01:38]}  Qb6+ {[%clk 0:01:52]} 24. Kh1 {[%clk 0:01:37]}  Ra7 {[%clk 0:01:53]} 25. Qxe4 {[%clk 0:01:36]}  Qxb2 {[%clk 0:01:35]} 26. Rab1 {[%clk 0:01:24]}  Qe5 {[%clk 0:01:27]} 27. Qxe5 {[%clk 0:01:20]}  Bxe5 {[%clk 0:01:27]} 28. f6 {[%clk 0:01:21]}  Rxa2 {[%clk 0:01:23]} 29. Re1 {[%clk 0:01:19]}  Bd6 {[%clk 0:01:08]} 30. Rbc1 {[%clk 0:01:12]}  c3 {[%clk 0:01:02]} 31. Bh6 {[%clk 0:00:53]}  c2 {[%clk 0:00:49]} 32. Re4 {[%clk 0:00:53]}  Bf8 {[%clk 0:00:30]} 33. Rg4+ {[%clk 0:00:44]}  Kh8 {[%clk 0:00:30]} 34. Bxf8 {[%clk 0:00:43]}  Rxf8 {[%clk 0:00:30]} 35. Rc4 {[%clk 0:00:43]}  Ra5 {[%clk 0:00:14]} 36. R1xc2 {[%clk 0:00:21]}  Rxd5 {[%clk 0:00:13]} 37. h3 {[%clk 0:00:21]}  h6 {[%clk 0:00:13]} 38. Rc8 {[%clk 0:00:20]}  Rxc8 {[%clk 0:00:13]} 39. Rxc8+ {[%clk 0:00:21]}  Kh7 {[%clk 0:00:13]} 40. Rc6 {[%clk 0:00:21]}  Kg6 {[%clk 0:00:13]} 41. g4 {[%clk 0:00:21]}  Kg5 {[%clk 0:00:12]} 42. Kg2 {[%clk 0:00:21]}  Rd3 {[%clk 0:00:12]} 43. Kh2 {[%clk 0:00:18]}  Kh4 {[%clk 0:00:10]} 44. Rc7 {[%clk 0:00:19]}  Rxh3+ {[%clk 0:00:04]} 45. Kg2 {[%clk 0:00:19]}  Rg3+ {[%clk 0:00:04]} 46. Kh2 {[%clk 0:00:16]}  Rxg4 {[%clk 0:00:03]} 47. Rxf7 {[%clk 0:00:16]}  Rf4 {[%clk 0:00:04]} 48. Rf8 {[%clk 0:00:14]}  h5 {[%clk 0:00:04]} 49. Kg2 {[%clk 0:00:14]}  Rf5 {[%clk 0:00:04]} 50. f7 {[%clk 0:00:13]}  Rf4 {[%clk 0:00:05]} 51. Kg1 {[%clk 0:00:12]}  Kh3 {[%clk 0:00:02]} 52. Rh8 {[%clk 0:00:08]}  Rxf7 {[%clk 0:00:02]} 53. Rxh5+ {[%clk 0:00:09]}  Kg3 {[%clk 0:00:01]} 1/2-1/2

[Event "January 9 Early 2024"]
[Site "https://www.chess.com"]
[Date "2024.01.11"]
[Round "1"]
[White "Rajdeep Sarkar"]
[Black "Kadric, Denis"]
[Result "0-1"]
[Board "269"]
[TimeControl "180+1"]
[WhiteFideId "25007963"]
[BlackFideId "14403803"]
[WhiteElo "2473"]
[BlackElo "2904"]
[WhiteTeam "IND"]
[BlackTeam "MNE"]
[WhiteClock "0:00:01"]
[BlackClock "0:00:10"]

1. Nf3 {[%clk 0:02:59]}  d6 {[%clk 0:03:00]} 2. d4 {[%clk 0:02:58]}  Nf6 {[%clk 0:03:00]} 3. c4 {[%clk 0:02:58]}  Nbd7 {[%clk 0:03:00]} 4. g3 {[%clk 0:02:57]}  e5 {[%clk 0:03:00]} 5. Bg2 {[%clk 0:02:58]}  c6 {[%clk 0:02:59]} 6. O-O {[%clk 0:02:58]}  e4 {[%clk 0:03:00]} 7. Ne1 {[%clk 0:02:56]}  d5 {[%clk 0:03:01]} 8. Nc3 {[%clk 0:02:56]}  Be7 {[%clk 0:02:56]} 9. f3 {[%clk 0:02:56]}  exf3 {[%clk 0:02:55]} 10. Nxf3 {[%clk 0:02:56]}  O-O {[%clk 0:02:56]} 11. Bf4 {[%clk 0:02:47]}  Re8 {[%clk 0:02:51]} 12. Ne5 {[%clk 0:02:38]}  Nb6 {[%clk 0:02:47]} 13. c5 {[%clk 0:02:26]}  Nbd7 {[%clk 0:02:48]} 14. e4 {[%clk 0:02:09]}  dxe4 {[%clk 0:02:27]} 15. Nxf7 {[%clk 0:01:24]}  Kxf7 {[%clk 0:02:24]} 16. Qb3+ {[%clk 0:01:23]}  Kf8 {[%clk 0:01:17]} 17. Nxe4 {[%clk 0:01:22]}  Nxe4 {[%clk 0:01:17]} 18. Bc7+ {[%clk 0:00:39]}  Ndf6 {[%clk 0:01:18]} 19. Bxd8 {[%clk 0:00:39]}  Bxd8 {[%clk 0:01:18]} 20. Rae1 {[%clk 0:00:33]}  Ng5 {[%clk 0:00:53]} 21. Rxe8+ {[%clk 0:00:20]}  Kxe8 {[%clk 0:00:53]} 22. Qe3+ {[%clk 0:00:16]}  Ne6 {[%clk 0:00:51]} 23. Bh3 {[%clk 0:00:11]}  Kf7 {[%clk 0:00:51]} 24. g4 {[%clk 0:00:10]}  h6 {[%clk 0:00:47]} 25. g5 {[%clk 0:00:10]}  Nxg5 {[%clk 0:00:41]} 26. Bxc8 {[%clk 0:00:09]}  Rxc8 {[%clk 0:00:41]} 27. h4 {[%clk 0:00:09]}  Ne6 {[%clk 0:00:32]} 28. Re1 {[%clk 0:00:09]}  Nf8 {[%clk 0:00:32]} 29. Qb3+ {[%clk 0:00:08]}  Nd5 {[%clk 0:00:29]} 30. Qxb7+ {[%clk 0:00:08]}  Rc7 {[%clk 0:00:29]} 31. Qb8 {[%clk 0:00:08]}  Be7 {[%clk 0:00:25]} 32. Rf1+ {[%clk 0:00:08]}  Bf6 {[%clk 0:00:23]} 33. Re1 {[%clk 0:00:07]}  Ne6 {[%clk 0:00:23]} 34. Qa8 {[%clk 0:00:04]}  Bxd4+ {[%clk 0:00:22]} 35. Kg2 {[%clk 0:00:05]}  Bxc5 {[%clk 0:00:21]} 36. Rf1+ {[%clk 0:00:04]}  Nf6 {[%clk 0:00:21]} 37. a3 {[%clk 0:00:04]}  Be7 {[%clk 0:00:17]} 38. Qb8 {[%clk 0:00:03]}  Rd7 {[%clk 0:00:16]} 39. Qb3 {[%clk 0:00:02]}  Rd5 {[%clk 0:00:14]} 40. Rf3 {[%clk 0:00:01]}  a5 {[%clk 0:00:14]} 41. Qc3 {[%clk 0:00:01]}  Rc5 {[%clk 0:00:13]} 42. Qc2 {[%clk 0:00:01]}  Bd6 {[%clk 0:00:12]} 43. Qe2 {[%clk 0:00:01]}  Nf4+ {[%clk 0:00:11]} 44. Rxf4 {[%clk 0:00:01]}  Bxf4 {[%clk 0:00:12]} 45. Qf3 {[%clk 0:00:01]}  Be5 {[%clk 0:00:12]} 46. Qb3+ {[%clk 0:00:02]}  Rd5 {[%clk 0:00:11]} 47. Qa4 {[%clk 0:00:01]}  Bxb2 {[%clk 0:00:10]} 48. Qxc6 {[%clk 0:00:01]}  Bxa3 {[%clk 0:00:10]} 0-1